[Event "GER-ch Youth-U14w 2022"]
[Site "Willingen"]
[Date "2022.06.08"]
[Round "6.9"]
[White "Margaryan, Venera"]
[Black "Eichhorn, Mathilda"]
[Result "1/2-1/2"]
[ECO "D30"]
[WhiteElo "1477"]
[BlackElo "1330"]
[Annotator "NA RC COMBH"]
[PlyCount "115"]
[EventDate "2022.06.05"]
[EventType "swiss"]
[EventRounds "9"]
[EventCountry "GER"]
[SourceTitle "playchess.com"]
[Source "ChessBase"]
[SourceQuality "1"]
[TimeControl "40/4500+30:900+30"]

1. d4 {[%emt 0:00:00]} e6 {[%emt 0:00:00]} 2. Nf3 {[%emt 0:00:00]} d5 {[%emt 0:00:00]} 3. c4 {[%emt 0:00:00]} Nf6 {[%emt 0:00:00]} 4. Bg5 {[%emt 0:00:00]} Be7 {[%emt 0:00:00]} 5. e3 {[%emt 0:00:00]} b6 {[%emt 0:00:00]} 6. Bxf6 {[%emt 0:00:00]} Bxf6 {[%emt 0:00:00]} 7. cxd5 {[%emt 0:00:00]} exd5 {[%emt 0:00:00]} 8. Nc3 {[%emt 0:00:00]} Bb7 {[%emt 0:00:00]} 9. Bd3 {[%emt 0:00:00]} O-O {[%emt 0:00:00]} 10. Bc2 {[%emt 0:00:00]} Re8 {[%emt 0:00:00]} 11. Qd3 {[%emt 0:00:00]} g6 {[%emt 0:00:00]} 12. O-O-O {[%emt 0:00:00]} a5 {[%emt 0:00:00]} 13. h4 {[%emt 0:00:00]} Nc6 {[%emt 0:00:31]} 14. a3 {[%emt 0:00:00]} Ba6 {[%emt 0:00:34]} 15. Qd2 {[%emt 0:00:09]} b5 {[%emt 0:01:26]} 16. Na2 {[%emt 0:06:13]} Qd6 {[%emt 0:08:17]} 17. h5 {[%emt 0:10:34]} b4 {[%emt 0:11:46]} 18. a4 {[%emt 0:05:37]} Rab8 {[%emt 0:06:14]} 19. b3 {[%emt 0:02:05]} Na7 {[%emt 0:02:00]} 20. hxg6 {[%emt 0:00:53]} fxg6 {[%emt 0:00:12]} 21. Bd3 {[%emt 0:09:33]} Bb7 {[%emt 0:02:39]} 22. Qc2 {[%emt 0:05:55]} Kg7 {[%emt 0:02:51]} 23. Rh2 {[%emt 0:03:41]} Rbc8 {[%emt 0:02:13]} 24. Rdh1 {[%emt 0:02:48]} Rh8 {[%emt 0:00:31]} 25. Qe2 {[%emt 0:18:18]} c5 {[%emt 0:07:08]} 26. Kb1 {[%emt 0:02:10]} cxd4 {[%emt 0:01:32]} 27. Nxd4 {[%emt 0:01:47]} Bxd4 {[%emt 0:03:52]} 28. exd4 {[%emt 0:00:15]} Nc6 {[%emt 0:01:52]} 29. Qg4 {[%emt 0:01:53]} Rcd8 {[%emt 0:01:22]} 30. Rh6 {[%emt 0:02:31]} Bc8 {[%emt 0:13:32]} 31. Qh4 {[%emt 0:01:17]} Qf6 {[%emt 0:09:19]} 32. Rxh7+ {[%emt 0:00:43]} Rxh7 {[%emt 0:00:06]} 33. Qxh7+ {[%emt 0:00:13]} Kf8 {[%emt 0:00:16]} 34. Qh6+ {[%emt 0:06:48]} Qg7 {[%emt 0:01:51]} 35. Qxg7+ {[%emt 0:03:03]} Kxg7 {[%emt 0:00:08]} 36. Rh4 {[%emt 0:00:24]} Bf5 {[%emt 0:01:26]} 37. Nc1 {[%emt 0:01:24]} Re8 {[%emt 0:00:49]} 38. Bxf5 {[%emt 0:01:35]} gxf5 {[%emt 0:00:08]} 39. f3 {[%emt 0:03:06]} Re1 {[%emt 0:04:17]} 40. Rf4 {[%emt 0:01:51]} Kg6 {[%emt 0:00:31]} 41. g4 {[%emt 0:00:00]} fxg4 {[%emt 0:00:00]} 42. Rxg4+ {[%emt 0:00:00]} Kf5 {[%emt 0:00:00]} 43. Kc2 {[%emt 0:00:00]} Rf1 {[%emt 0:00:00]} 44. Nd3 {[%emt 0:01:16]} Rxf3 {[%emt 0:00:00]} 45. Rh4 {[%emt 0:04:23]} Kg5 {[%emt 0:00:00]} 46. Rh8 {[%emt 0:03:04]} Nxd4+ {[%emt 0:00:00]} 47. Kd2 {[%emt 0:01:00]} Nxb3+ {[%emt 0:00:00]} 48. Ke2 {[%emt 0:00:13]} Nd4+ {[%emt 0:00:00]} 49. Kd2 {[%emt 0:00:44]} Rf6 {[%emt 0:00:00]} 50. Rd8 {[%emt 0:01:50]} Rf5 {[%emt 0:00:00]} 51. Ra8 {[%emt 0:00:22]} Nc6 {[%emt 0:00:00]} 52. Nc5 {[%emt 0:00:54]} d4 {[%emt 0:00:00]} 53. Nb3 {[%emt 0:00:52]} Rf2+ {[%emt 0:03:34]} 54. Ke1 {[%emt 0:02:11]} Rf5 {[%emt 0:15:14]} 55. Ra6 {[%emt 0:00:38]} Rf6 {[%emt 0:05:11]} 56. Nxa5 {[%emt 0:00:57]} Nxa5 {[%emt 0:02:34]} 57. Rxa5+ {[%emt 0:00:07]} Rf5 58. Rb5 1/2-1/2

[Event "GER-ch Youth-U14w 2022"]
[Site "Willingen"]
[Date "2022.06.09"]
[Round "7.1"]
[White "Peglau, Dora"]
[Black "Bezsonna, Polina"]
[Result "1-0"]
[ECO "A56"]
[WhiteElo "2008"]
[BlackElo "1511"]
[Annotator "TA"]
[PlyCount "119"]
[EventDate "2022.06.05"]
[EventType "swiss"]
[EventRounds "9"]
[EventCountry "GER"]
[SourceTitle "playchess.com"]
[Source "ChessBase"]
[SourceQuality "1"]
[TimeControl "40/4500+30:900+30"]

{[%evp 20,119,75,27,59,54,106,90,136,95,104,109,96,63,60,40,46,43,160,75,74,73,60,63,157,136,166,81,87,92,84,82,104,80,197,182,199,179,189,190,175,175,183,143,156,141,140,24,79,73,66,68,66,0,0,0,122,111,122,106,582,550,543,537,523,400,397,395,468,1012,925,931,886,783,672,645,1777,1658,1353,1236,1123,695,12837,12837,12836,12836,27999,27999,27999,27999,27999,27999,27999,27999,27999,27999,27999,27999,27999,27999,27999,27999]} 1. d4 {[%emt 0:00:00]} Nf6 {[%emt 0:00:00]} 2. c4 {[%emt 0:00:00]} c5 {[%emt 0:00:00]} 3. Nf3 {[%emt 0:00:00]} cxd4 {[%emt 0:00:00]} 4. Nxd4 {[%emt 0:00:00]} g6 {[%emt 0:00:00]} 5. Nc3 {[%emt 0:00:00]} Bg7 {[%emt 0:00:00]} 6. e4 {[%emt 0:00:00]} Nc6 {[%emt 0:00:00]} 7. Be3 {[%emt 0:00:00]} O-O {[%emt 0:00:00]} 8. Be2 {[%emt 0:00:00]} b6 {[%emt 0:00:00]} 9. O-O {[%emt 0:00:00]} Bb7 {[%emt 0:00:00]} 10. f3 {[%emt 0:00:00]} e6 {[%emt 0:00:00]} 11. Rc1 {[%emt 0:00:00]} ({White should play} 11. Ndb5 $16) 11... Ne8 {[%emt 0:06:49] [#] B38: Sicilian: Maroczy Bind with 5...Bg7 and 7...0-0.} 12. Qd2 $146 {[%emt 0:00:00]} ({Predecessor:} 12. Nxc6 Bxc6 13. Qd2 f5 14. exf5 gxf5 15. Rfd1 Qh4 16. Bg5 Qh5 17. b4 Rf7 18. a4 Bf8 19. b5 {½-½ (49) Conquest,S (2565)-Rogers,I (2538) Vila Real 2001}) 12... Nc7 {[%emt 0:02:47]} (12... f5 $14) 13. Rfd1 {[%emt 0:00:01]} Ne7 {[%emt 0:03:47]} (13... Nxd4 $142 14. Bxd4 f6) 14. Ndb5 {[%emt 0:06:03]} Nxb5 {[%emt 0:09:54]} 15. Nxb5 {[%emt 0:00:29]} (15. cxb5 $6 d5 $11) 15... Bc6 {[%emt 0:10:28]} 16. Nd6 {[%emt 0:01:34]} Nc8 {[%emt 0:04:47]} 17. b4 {[%emt 0:02:11] Black must now prevent b5.} Ba4 {[%emt 0:05:57]} 18. Re1 {[%emt 0:02:16]} ({But not} 18. Bg5 f6 19. Bf4 (19. Nb7 $2 Qc7 $19) 19... Bxd1 $17) 18... Qe7 {[%emt 0:07:21] [#]} (18... Nxd6 $14 19. Qxd6 Re8) 19. Bf4 {[%emt 0:02:53]} ({White should try} 19. c5 $1) 19... e5 $16 {[%emt 0:03:01]} 20. Nxc8 {[%emt 0:00:46] 0x0.002b0ef91e9cdp-1022s more active pieces.} Rfxc8 {[%emt 0:00:08]} 21. Bg5 {[%emt 0:01:45]} f6 {[%emt 0:01:41] [#]} (21... Qe6 $14) 22. Be3 $1 {[%emt 0:00:25]} Bc6 {[%emt 0:03:37]} 23. Bd1 {[%emt 0:15:02]} (23. b5 $18 {is more deadly.}) 23... d6 {[%emt 0:07:40]} 24. Bb3 {[%emt 0:01:46]} Kh8 {[%emt 0:00:40]} 25. Red1 {[%emt 0:03:57]} Rd8 {[%emt 0:01:27]} 26. Rc3 {[%emt 0:04:26]} Rd7 {[%emt 0:03:58]} (26... Bf8 $16) 27. Rd3 {[%emt 0:04:30]} Rad8 {[%emt 0:00:57]} 28. b5 {[%emt 0:01:29]} Ba8 {[%emt 0:05:42]} 29. c5 {[%emt 0:03:38]} bxc5 {[%emt 0:00:16] [#]} 30. Bxc5 $1 {[%emt 0:00:06][%cal Rd3d6][%mdl 512]} Bf8 {[%emt 0:00:38] [#]} 31. a4 $1 {[%emt 0:01:44]} f5 {[%emt 0:03:54] [#]} 32. exf5 {[%emt 0:04:28]} gxf5 {[%emt 0:00:10]} 33. Be3 {[%emt 0:02:08]} (33. Bb4 $16) 33... d5 {[%emt 0:03:09]} (33... f4 $1 $11 34. Bc5 Qe8) 34. Bg5 {[%emt 0:00:37]} Qc5+ {[%emt 0:00:05]} 35. Qf2 $1 {[%emt 0:04:50] Bf6+ is the strong threat.} Rc8 $1 {[%emt 0:01:29]} 36. Be3 {[%emt 0:04:55]} ({Better is} 36. Kf1 $14) 36... d4 $11 {[%emt 0:01:12]} 37. Bg5 $36 {[%emt 0:00:43][%mdl 2048] And now Be6 would win. White is more active.} Rdc7 {[%emt 0:01:13]} (37... Re8 $1 $11) 38. Be6 $16 {[%emt 0:03:13][%csl LRc8,LRf5] Strongly threatening Qh4.} Re8 {[%emt 0:00:43]} 39. Bxf5 {[%emt 0:00:43] Threatens to win with Qh4.} e4 $2 {[%emt 0:00:38][%mdl 8192] Black cannot hold the game after this.} (39... Be7 $16 40. Bxe7 (40. Qh4 Bxg5 41. Qxg5 Rg8 $14) 40... Rcxe7) 40. Bf6+ $18 {[%emt 0:01:01]} Bg7 {[%emt 0:00:09]} 41. Bxg7+ {[%emt 0:15:22]} Rxg7 {[%emt 0:15:56]} 42. Bxe4 {[%emt 0:00:53]} Bxe4 {[%emt 0:00:26]} 43. fxe4 {[%emt 0:00:05]} Rxe4 {[%emt 0:00:26]} 44. Rxd4 {[%emt 0:00:48]} Rxd4 {[%emt 0:00:46]} 45. Qxd4 {[%emt 0:00:25]} Qxd4+ {[%emt 0:00:30]} 46. Rxd4 {[%emt 0:00:08][%mdl 4096] Endgame aiming for Rd8+. KR-KR} Rb7 {[%emt 0:00:20]} 47. Rg4 {[%emt 0:00:48]} a6 {[%emt 0:00:37]} 48. bxa6 {[%emt 0:00:51]} Ra7 {[%emt 0:00:08]} 49. Kf2 {[%emt 0:00:12]} Rxa6 50. Ke3 {[%emt 0:00:18]} h5 {[%emt 0:00:35]} 51. Rh4 {[%emt 0:03:42]} Kg7 {[%emt 0:00:35]} 52. Rxh5 {[%emt 0:01:39]} Rxa4 {[%emt 0:00:06]} 53. Rd5 {[%emt 0:04:17] White mates.} Kf6 {[%emt 0:00:26]} 54. g3 {[%emt 0:01:14]} Ra3+ {[%emt 0:00:44]} 55. Rd3 {[%emt 0:00:43]} Ra2 {[%emt 0:00:19]} 56. h4 {[%emt 0:00:11]} Kf5 {[%emt 0:00:41]} 57. Kf3 {[%emt 0:01:25]} Ra4 {[%emt 0:00:32]} 58. Rd5+ {[%emt 0:01:04]} Ke6 {[%emt 0:00:14]} 59. Rb5 {[%emt 0:00:23]} Ra3+ {[%emt 0:00:15]} 60. Kg4 {[%emt 0:00:21] Weighted Error Value: White=0.24 (precise) /Black=0.57} 1-0

[Event "GER-ch Youth-U14w 2022"]
[Site "Willingen"]
[Date "2022.06.09"]
[Round "7.2"]
[White "Lorenz, Veronika"]
[Black "Braeutigam, Katerina"]
[Result "0-1"]
[ECO "B14"]
[WhiteElo "1510"]
[BlackElo "1860"]
[Annotator "NA RC COMBH"]
[PlyCount "128"]
[EventDate "2022.06.05"]
[EventType "swiss"]
[EventRounds "9"]
[EventCountry "GER"]
[SourceTitle "playchess.com"]
[Source "ChessBase"]
[SourceQuality "1"]
[TimeControl "40/4500+30:900+30"]

1. e4 {[%emt 0:00:00]} c6 {[%emt 0:00:00]} 2. d4 {[%emt 0:00:00]} d5 {[%emt 0:00:00]} 3. exd5 {[%emt 0:00:00]} cxd5 {[%emt 0:00:00]} 4. c4 {[%emt 0:00:00]} Nf6 {[%emt 0:00:00]} 5. Nc3 {[%emt 0:00:00]} g6 {[%emt 0:00:00]} 6. cxd5 {[%emt 0:00:00]} Nxd5 {[%emt 0:00:00]} 7. Bc4 {[%emt 0:00:00]} Nb6 {[%emt 0:00:00]} 8. Bb3 {[%emt 0:00:00]} Bg7 {[%emt 0:00:00]} 9. Nf3 {[%emt 0:00:00]} O-O {[%emt 0:00:00]} 10. O-O {[%emt 0:00:00]} Nc6 {[%emt 0:00:00]} 11. d5 {[%emt 0:00:00]} Na5 {[%emt 0:00:00]} 12. Re1 {[%emt 0:00:00]} Nxb3 {[%emt 0:00:00]} 13. axb3 {[%emt 0:00:00]} Re8 {[%emt 0:00:00]} 14. Be3 {[%emt 0:00:00]} Bg4 {[%emt 0:06:44]} 15. h3 {[%emt 0:02:27]} Bf5 {[%emt 0:17:06]} 16. Bd4 {[%emt 0:11:57]} Bf8 {[%emt 0:23:08]} 17. Be5 {[%emt 0:08:48]} a6 {[%emt 0:05:21]} 18. Nd4 {[%emt 0:15:03]} Nxd5 {[%emt 0:20:20]} 19. Nxf5 {[%emt 0:00:24]} Nxc3 {[%emt 0:00:55]} 20. Qg4 {[%emt 0:17:00]} Nd5 {[%emt 0:04:53]} 21. Rad1 {[%emt 0:00:38]} Qc8 {[%emt 0:05:15]} 22. Rxd5 {[%emt 0:04:25]} Qxf5 {[%emt 0:00:05]} 23. Qxf5 {[%emt 0:00:39]} gxf5 {[%emt 0:00:01]} 24. Rd7 {[%emt 0:00:54]} b5 {[%emt 0:00:37]} 25. Rc1 {[%emt 0:00:47]} Rec8 {[%emt 0:00:28]} 26. Rcc7 {[%emt 0:00:50]} Rxc7 {[%emt 0:00:50]} 27. Rxc7 {[%emt 0:00:08]} e6 {[%emt 0:01:23]} 28. Kf1 {[%emt 0:00:58]} Bb4 {[%emt 0:01:48]} 29. Ke2 {[%emt 0:01:18]} Ba5 {[%emt 0:00:31]} 30. Rc6 {[%emt 0:00:10]} Kf8 {[%emt 0:00:30]} 31. Bf6 {[%emt 0:00:14]} Ke8 {[%emt 0:00:28]} 32. Kf3 {[%emt 0:01:59]} Kd7 {[%emt 0:00:29]} 33. Rc2 {[%emt 0:00:09]} Bc7 {[%emt 0:00:34]} 34. Ke3 {[%emt 0:02:07]} Rg8 {[%emt 0:00:27]} 35. f3 {[%emt 0:00:35]} e5 {[%emt 0:00:31]} 36. g4 {[%emt 0:02:07]} Rg6 {[%emt 0:00:30]} 37. g5 {[%emt 0:00:53]} h6 {[%emt 0:00:24]} 38. h4 {[%emt 0:00:02]} hxg5 {[%emt 0:00:11]} 39. hxg5 {[%emt 0:00:28]} Rg8 {[%emt 0:00:33]} 40. Rd2+ {[%emt 0:01:32]} Kc6 {[%emt 0:00:51]} 41. Rc2+ {[%emt 0:15:26]} Kb7 {[%emt 0:00:00]} 42. Rd2 {[%emt 0:00:00]} Kc8 {[%emt 0:00:00]} 43. Rc2 {[%emt 0:00:00]} Re8 {[%emt 0:00:00]} 44. Rh2 {[%emt 0:00:00]} e4 {[%emt 0:11:56]} 45. f4 {[%emt 0:00:00]} Bb6+ {[%emt 0:03:46]} 46. Bd4 {[%emt 0:00:00]} Bxd4+ {[%emt 0:00:51]} 47. Kxd4 {[%emt 0:00:00]} Kd7 {[%emt 0:01:12]} 48. Ke3 {[%emt 0:00:00]} Re6 {[%emt 0:00:34]} 49. Rd2+ {[%emt 0:00:00]} Rd6 {[%emt 0:00:14]} 50. Rc2 {[%emt 0:00:00]} Rd3+ {[%emt 0:00:18]} 51. Ke2 {[%emt 0:00:00]} Rxb3 {[%emt 0:00:09]} 52. Rd2+ {[%emt 0:00:00]} Rd3 {[%emt 0:00:52]} 53. Rc2 {[%emt 0:00:00]} Rf3 {[%emt 0:00:50]} 54. Rd2+ {[%emt 0:00:00]} Ke7 {[%emt 0:01:00]} 55. Rc2 {[%emt 0:00:00]} Rxf4 {[%emt 0:00:27]} 56. Rc7+ {[%emt 0:00:00]} Kf8 {[%emt 0:00:32]} 57. Rc6 {[%emt 0:00:00]} Rg4 {[%emt 0:00:26]} 58. Rxa6 {[%emt 0:00:00]} Rxg5 {[%emt 0:00:49]} 59. Rb6 {[%emt 0:00:00]} Rg2+ {[%emt 0:00:20]} 60. Ke3 {[%emt 0:00:00]} Rxb2 {[%emt 0:00:06]} 61. Rf6 {[%emt 0:00:29]} Rb3+ {[%emt 0:00:29]} 62. Ke2 {[%emt 0:00:13]} Ke7 {[%emt 0:00:39]} 63. Rxf5 {[%emt 0:00:08]} Ke6 {[%emt 0:00:08]} 64. Rf4 {[%emt 0:00:07]} f5 {[%emt 0:00:09]} 0-1

[Event "GER-ch Youth-U14w 2022"]
[Site "Willingen"]
[Date "2022.06.09"]
[Round "7.3"]
[White "Trunz, Michelle"]
[Black "Haug, Mara"]
[Result "1/2-1/2"]
[ECO "A58"]
[WhiteElo "1708"]
[BlackElo "1394"]
[Annotator "NA RC COMBH"]
[PlyCount "66"]
[EventDate "2022.06.05"]
[EventType "swiss"]
[EventRounds "9"]
[EventCountry "GER"]
[SourceTitle "playchess.com"]
[Source "ChessBase"]
[SourceQuality "1"]
[TimeControl "40/4500+30:900+30"]

1. d4 {[%emt 0:00:00]} Nf6 {[%emt 0:00:00]} 2. c4 {[%emt 0:00:00]} c5 {[%emt 0:00:00]} 3. d5 {[%emt 0:00:00]} b5 {[%emt 0:00:00]} 4. cxb5 {[%emt 0:00:00]} a6 {[%emt 0:00:00]} 5. bxa6 {[%emt 0:00:00]} g6 {[%emt 0:00:00]} 6. Nc3 {[%emt 0:00:00]} Bg7 {[%emt 0:00:00]} 7. e4 {[%emt 0:00:00]} O-O {[%emt 0:00:00]} 8. Nf3 {[%emt 0:00:00]} Qa5 {[%emt 0:00:00]} 9. Bd3 {[%emt 0:00:00]} Nxd5 {[%emt 0:00:00]} 10. exd5 {[%emt 0:09:14]} Bxc3+ {[%emt 0:00:00]} 11. Bd2 {[%emt 0:00:33]} Bxd2+ {[%emt 0:00:00]} 12. Qxd2 {[%emt 0:00:05]} Qxd2+ {[%emt 0:00:00]} 13. Kxd2 {[%emt 0:01:31]} d6 {[%emt 0:00:00]} 14. Rhe1 {[%emt 0:01:41]} Ra7 {[%emt 0:00:00]} 15. a3 {[%emt 0:10:00]} Bxa6 {[%emt 0:00:41]} 16. b4 {[%emt 0:03:02]} Bxd3 {[%emt 0:06:10]} 17. Kxd3 {[%emt 0:00:02]} Nd7 {[%emt 0:04:20]} 18. Kc2 {[%emt 0:10:06]} Rc8 {[%emt 0:11:58]} 19. Kb2 {[%emt 0:05:29]} Nb6 {[%emt 0:03:40]} 20. Red1 {[%emt 0:05:24]} cxb4 {[%emt 0:03:10]} 21. axb4 {[%emt 0:00:06]} Rxa1 {[%emt 0:00:42]} 22. Kxa1 {[%emt 0:02:36]} Rc4 {[%emt 0:02:55]} 23. Rd4 {[%emt 0:00:19]} Rxd4 {[%emt 0:01:57]} 24. Nxd4 {[%emt 0:00:03]} Nxd5 {[%emt 0:02:14]} 25. Nc6 {[%emt 0:00:33]} Kf8 {[%emt 0:01:01]} 26. Kb2 {[%emt 0:00:11]} Ke8 {[%emt 0:00:35]} 27. Kb3 {[%emt 0:00:11]} Kd7 {[%emt 0:01:07]} 28. b5 {[%emt 0:00:37]} Kc7 {[%emt 0:03:27]} 29. Kc4 {[%emt 0:02:18]} e6 {[%emt 0:03:31]} 30. Nd4 {[%emt 0:01:42]} Kb6 {[%emt 0:08:35]} 31. Nc6 {[%emt 0:05:04]} Kc7 {[%emt 0:08:07]} 32. Nd4 {[%emt 0:02:13]} Kb6 {[%emt 0:04:01]} 33. Nc6 {[%emt 0:00:20]} Kc7 {[%emt 0:00:01]} 1/2-1/2

[Event "GER-ch Youth-U14w 2022"]
[Site "Willingen"]
[Date "2022.06.09"]
[Round "7.4"]
[White "Reich, Elisabeth"]
[Black "Wartenberg, Alissa"]
[Result "0-1"]
[ECO "B00"]
[WhiteElo "1457"]
[BlackElo "1741"]
[Annotator "NA RC COMBH"]
[PlyCount "116"]
[EventDate "2022.06.05"]
[EventType "swiss"]
[EventRounds "9"]
[EventCountry "GER"]
[SourceTitle "playchess.com"]
[Source "ChessBase"]
[SourceQuality "1"]
[TimeControl "40/4500+30:900+30"]

1. e4 {[%emt 0:00:00]} d6 {[%emt 0:00:00]} 2. d3 {[%emt 0:00:00]} e5 {[%emt 0:00:00]} 3. Nf3 {[%emt 0:00:00]} Nc6 {[%emt 0:00:00]} 4. Nbd2 {[%emt 0:00:00]} Nf6 {[%emt 0:00:00]} 5. g3 {[%emt 0:00:00]} h6 {[%emt 0:00:00]} 6. Bg2 {[%emt 0:00:00]} Be6 {[%emt 0:00:00]} 7. c3 {[%emt 0:00:00]} d5 {[%emt 0:04:19]} 8. a3 {[%emt 0:00:00]} Qd7 {[%emt 0:01:29]} 9. b4 {[%emt 0:00:00]} dxe4 {[%emt 0:07:57]} 10. Nxe4 {[%emt 0:00:00]} Nxe4 {[%emt 0:00:47]} 11. dxe4 {[%emt 0:00:05]} Qxd1+ {[%emt 0:00:16]} 12. Kxd1 {[%emt 0:00:02]} O-O-O+ {[%emt 0:00:16]} 13. Kc2 {[%emt 0:01:19]} f6 {[%emt 0:00:41]} 14. Be3 {[%emt 0:01:24]} Bd6 {[%emt 0:08:39]} 15. Nd2 {[%emt 0:04:30]} Kb8 {[%emt 0:05:35]} 16. Nb3 {[%emt 0:00:56]} b6 {[%emt 0:05:24]} 17. a4 {[%emt 0:02:30]} Kb7 {[%emt 0:05:26]} 18. Rhb1 {[%emt 0:06:55]} Rd7 {[%emt 0:06:10]} 19. a5 {[%emt 0:05:35]} Bc4 {[%emt 0:03:04]} 20. axb6 {[%emt 0:00:42]} cxb6 {[%emt 0:00:24]} 21. Bf1 {[%emt 0:01:40]} Bxf1 {[%emt 0:00:22]} 22. Rxf1 {[%emt 0:00:02]} Rc8 {[%emt 0:00:35]} 23. Kb2 {[%emt 0:02:17]} Nd8 {[%emt 0:05:14]} 24. Rfd1 {[%emt 0:02:30]} Nf7 {[%emt 0:01:02]} 25. Nc5+ {[%emt 0:05:24]} bxc5 {[%emt 0:01:02]} 26. bxc5 {[%emt 0:01:02]} a6 {[%emt 0:01:46]} 27. cxd6 {[%emt 0:01:01]} Nxd6 {[%emt 0:02:53]} 28. Kc2 {[%emt 0:01:25]} Rcd8 {[%emt 0:01:02]} 29. Rdb1+ {[%emt 0:04:33]} Nb5 {[%emt 0:08:31]} 30. h4 {[%emt 0:07:02]} Rc8 {[%emt 0:02:18]} 31. Rb3 {[%emt 0:01:38]} Rc6 {[%emt 0:01:27]} 32. Rd1 {[%emt 0:01:13]} Rxd1 {[%emt 0:00:19]} 33. Kxd1 {[%emt 0:00:01]} Rxc3 {[%emt 0:00:32]} 34. Rb2 {[%emt 0:00:43]} Kc6 {[%emt 0:00:18]} 35. Rd2 {[%emt 0:00:29]} Nd6 {[%emt 0:01:50]} 36. Re2 {[%emt 0:01:06]} Nc4 {[%emt 0:00:45]} 37. Bc1 {[%emt 0:01:31]} a5 {[%emt 0:01:13]} 38. Bd2 {[%emt 0:01:41]} Nxd2 {[%emt 0:00:32]} 39. Rxd2 {[%emt 0:00:09]} Rc4 {[%emt 0:00:30]} 40. f3 {[%emt 0:00:52]} Rd4 {[%emt 0:00:03]} 41. Kc1 {[%emt 0:15:41]} Rxd2 42. Kxd2 {[%emt 0:00:01]} Kc5 {[%emt 0:15:12]} 43. Kc3 {[%emt 0:00:21]} g6 {[%emt 0:00:16]} 44. f4 {[%emt 0:00:16]} h5 {[%emt 0:00:38]} 45. f5 {[%emt 0:00:55]} g5 {[%emt 0:01:24]} 46. g4 {[%emt 0:01:42]} gxh4 {[%emt 0:01:23]} 47. g5 {[%emt 0:00:11]} fxg5 {[%emt 0:00:07]} 48. f6 {[%emt 0:00:05]} Kd6 {[%emt 0:00:04]} 49. f7 {[%emt 0:00:06]} Ke7 {[%emt 0:00:03]} 50. Kd2 {[%emt 0:00:09]} Kxf7 {[%emt 0:00:04]} 51. Ke2 {[%emt 0:00:04]} a4 {[%emt 0:00:10]} 52. Kd3 {[%emt 0:00:19]} h3 {[%emt 0:00:04]} 53. Ke2 {[%emt 0:00:08]} h2 {[%emt 0:00:05]} 54. Kf2 {[%emt 0:00:06]} h1=Q {[%emt 0:00:04]} 55. Kg3 {[%emt 0:00:11]} a3 {[%emt 0:00:19]} 56. Kf2 {[%emt 0:00:13]} a2 {[%emt 0:00:02]} 57. Kg3 {[%emt 0:00:16]} a1=Q {[%emt 0:00:08]} 58. Kf2 {[%emt 0:00:16]} Qae1# {[%emt 0:00:07]} 0-1

[Event "GER-ch Youth-U14w 2022"]
[Site "Willingen"]
[Date "2022.06.09"]
[Round "7.5"]
[White "Englert, Lin"]
[Black "Mueller, Riyanna"]
[Result "1-0"]
[ECO "D20"]
[WhiteElo "1503"]
[BlackElo "1521"]
[Annotator "NA RC COMBH"]
[PlyCount "93"]
[EventDate "2022.06.05"]
[EventType "swiss"]
[EventRounds "9"]
[EventCountry "GER"]
[SourceTitle "playchess.com"]
[Source "ChessBase"]
[SourceQuality "1"]
[TimeControl "40/4500+30:900+30"]

1. d4 {[%emt 0:00:00]} d5 {[%emt 0:00:00]} 2. c4 {[%emt 0:00:00]} dxc4 {[%emt 0:00:00]} 3. e4 {[%emt 0:00:00]} b5 {[%emt 0:00:00]} 4. a4 {[%emt 0:00:00]} c6 {[%emt 0:00:00]} 5. Nc3 {[%emt 0:00:00]} a6 {[%emt 0:00:00]} 6. axb5 {[%emt 0:00:00]} cxb5 {[%emt 0:00:00]} 7. Nxb5 {[%emt 0:00:00]} axb5 {[%emt 0:00:00]} 8. Rxa8 {[%emt 0:00:00]} Bb7 {[%emt 0:00:00]} 9. Ra1 {[%emt 0:00:00]} e6 {[%emt 0:00:00]} 10. f3 {[%emt 0:00:15]} f5 {[%emt 0:00:00]} 11. exf5 {[%emt 0:05:50]} Nf6 {[%emt 0:00:00]} 12. fxe6 {[%emt 0:06:57]} Nd5 {[%emt 0:00:55]} 13. Ne2 {[%emt 0:09:28]} Bd6 {[%emt 0:20:11]} 14. g3 {[%emt 0:10:11]} O-O {[%emt 0:03:36]} 15. Bg2 {[%emt 0:01:26]} Bb4+ {[%emt 0:01:24]} 16. Kf2 {[%emt 0:02:54]} Qf6 {[%emt 0:06:51]} 17. Nf4 {[%emt 0:05:59]} g5 {[%emt 0:01:57]} 18. Nxd5 {[%emt 0:02:52]} Bxd5 {[%emt 0:00:12]} 19. Rf1 {[%emt 0:03:41]} Nc6 {[%emt 0:04:42]} 20. Be3 {[%emt 0:03:02]} Qxe6 {[%emt 0:05:42]} 21. Bxg5 {[%emt 0:02:40]} c3 {[%emt 0:04:07]} 22. bxc3 {[%emt 0:09:36]} Bxc3 {[%emt 0:00:22]} 23. Ra3 {[%emt 0:01:12]} b4 {[%emt 0:01:57]} 24. Rxc3 {[%emt 0:01:03]} bxc3 {[%emt 0:00:09]} 25. Re1 {[%emt 0:03:04]} Qf5 {[%emt 0:03:05]} 26. Bf4 {[%emt 0:05:21]} Nb4 {[%emt 0:03:12]} 27. Re3 {[%emt 0:02:17]} c2 {[%emt 0:02:04]} 28. Qd2 {[%emt 0:01:24]} Na2 {[%emt 0:11:48]} 29. Re5 {[%emt 0:03:33]} c1=Q {[%emt 0:00:48]} 30. Qxc1 {[%emt 0:00:11]} Nxc1 {[%emt 0:00:45]} 31. Rxf5 {[%emt 0:00:07]} Rxf5 {[%emt 0:00:47]} 32. Bxc1 {[%emt 0:00:04]} h5 {[%emt 0:00:48]} 33. f4 {[%emt 0:01:01]} Bxg2 {[%emt 0:00:21]} 34. Kxg2 {[%emt 0:00:05]} Rd5 {[%emt 0:01:08]} 35. Be3 {[%emt 0:00:45]} Kf7 {[%emt 0:00:35]} 36. Kf3 {[%emt 0:00:06]} Ke6 {[%emt 0:01:45]} 37. Ke4 {[%emt 0:01:20]} Ra5 {[%emt 0:01:36]} 38. h3 {[%emt 0:00:54]} Rb5 {[%emt 0:00:26]} 39. g4 {[%emt 0:00:59]} Ra5 {[%emt 0:00:41]} 40. f5+ {[%emt 0:01:33]} Kf7 {[%emt 0:01:46]} 41. Bg5 {[%emt 0:17:32]} hxg4 {[%emt 0:15:21]} 42. hxg4 {[%emt 0:00:09]} Ke8 {[%emt 0:00:09]} 43. Bf6 {[%emt 0:00:43]} Kf7 {[%emt 0:00:17]} 44. g5 {[%emt 0:01:08]} Rb5 {[%emt 0:00:32]} 45. Be5 {[%emt 0:00:36]} Ra5 {[%emt 0:00:25]} 46. g6+ {[%emt 0:00:30]} Kf8 {[%emt 0:00:41]} 47. f6 {[%emt 0:00:54]} 1-0